fUST/lending_fUST_20240802
["ID","MTS","AMOUNT","RATE_DAILY","PERIOD"]
[333875307,1722588646691,-500.0,0.00014246,2]
[333875308,1722588646700,-500.0,0.00014246,2]
[333875309,1722588646710,-286.87097525,0.00014246,2]
[333875310,1722588646720,-500.0,0.00014246,2]
[333875311,1722588646729,-500.0,0.00014246,2]
[333875312,1722588646739,-1626.91,0.00014246,2]
[333875313,1722588646748,-500.0,0.00014246,2]
[333875314,1722588646757,-512.88636566,0.00014246,2]
[333875315,1722588646766,-500.0,0.00014246,2]
[333875316,1722588646775,-500.0,0.00014246,2]
[333875317,1722588646785,-342.41987052,0.00014246,2]
[333875318,1722588646794,-1812.02,0.00014246,2]
[333875319,1722588646803,-500.0,0.00014246,2]
[333875320,1722588646811,-500.0,0.00014246,2]
[333875321,1722588646820,-2010.56,0.00014246,2]
[333875322,1722588646830,-500.0,0.00014246,2]
[333875323,1722588646842,-767.7,0.00014246,2]
[333875324,1722588646851,-500.0,0.00014246,2]
[333875325,1722588646860,-500.0,0.00014246,2]
[333875326,1722588646869,-500.0,0.00014246,2]
[333875327,1722588646878,-500.0,0.00014246,2]
[333875328,1722588646887,-500.0,0.00014246,2]
[333875329,1722588646896,-500.0,0.00014246,2]
[333875330,1722588646905,-265.68399383,0.00014246,2]
[333875331,1722588646914,-500.0,0.00014246,2]
[333875332,1722588646923,-500.0,0.00014246,2]
[333875333,1722588646932,-1640.27,0.00014246,2]
[333875334,1722588646941,-500.0,0.00014246,2]
[333875335,1722588646950,-500.0,0.00014246,2]
[333875336,1722588646959,-543.65,0.00014246,2]
[333875337,1722588646968,-848.28,0.00014246,2]
[333875338,1722588646978,-500.0,0.00014246,2]
[333875339,1722588646988,-500.0,0.00014246,2]
[333875340,1722588646997,-500.0,0.00014246,2]
[333875341,1722588647006,-500.0,0.00014246,2]
[333875342,1722588647016,-500.0,0.00014246,2]
[333875343,1722588647025,-500.0,0.00014246,2]
[333875344,1722588647034,-500.0,0.00014246,2]
[333875345,1722588647043,-500.0,0.00014246,2]
[333875346,1722588647052,-500.0,0.00014246,2]
[333875347,1722588647061,-407.85056107,0.00014246,2]
[333875348,1722588647070,-898.01,0.00014246,2]
[333875349,1722588647079,-500.0,0.00014246,2]
[333875350,1722588647094,-500.0,0.00014246,2]
[333875351,1722588647102,-500.0,0.00014246,2]
[333875352,1722588647112,-500.0,0.00014246,2]
[333875353,1722588647122,-500.0,0.00014246,2]
[333875354,1722588647131,-500.0,0.00014246,2]
[333875355,1722588647140,-500.0,0.00014246,2]
[333875356,1722588647149,-500.0,0.00014246,2]
[333875357,1722588647157,-500.0,0.00014246,2]
[333875358,1722588647166,-500.0,0.00014246,2]
[333875359,1722588647175,-500.0,0.00014246,2]
[333875360,1722588647184,-714.26,0.00014246,2]
[333875361,1722588647193,-500.0,0.00014246,2]
[333875362,1722588647203,-607.43,0.00014246,2]
[333875363,1722588647212,-500.0,0.00014246,2]
[333875364,1722588647221,-1393.75,0.00014246,2]
[333875365,1722588647231,-307.906415,0.00014247,2]
[333875366,1722588647241,-442.093585,0.00014247,2]
[333875367,1722588647250,-200.0,0.00014273,2]
[333875368,1722588647259,-150.112233,0.000143,2]
[333875369,1722588647268,-503.24427487,0.00014487,2]
[333875440,1722589837744,-162.42091,0.00012986,2]
[333875441,1722589837754,-2700.22205789,0.00013598,2]
[333875442,1722589837763,-251.79526793,0.00013598,2]
[333875443,1722589837772,-1865.48314748,0.00013598,2]
[333875444,1722589837781,-2160.5703251,0.00013678,2]
[333875445,1722589837791,-252.0,0.00013687,2]
[333875446,1722589837800,-2403.6,0.00013687,2]
[333875447,1722589837809,-8642.2813004,0.00013688,2]
[333875448,1722589837818,-2403.6,0.00013697,2]
[333875449,1722589837828,-2403.6,0.00013697,2]
[333875450,1722589837837,-2403.6,0.00013697,2]
[333875451,1722589837847,-2403.6,0.00013697,2]
[333875452,1722589837857,-501.61603736,0.00013698,2]
[333875453,1722589837867,-551.13558251,0.00013698,2]
[333875454,1722589837877,-234.79330286,0.00013698,2]
[333875455,1722589837886,-544.59021535,0.00013698,2]
[333875456,1722589837895,-502.9983679,0.00013698,2]
[333875457,1722589837905,-500.0,0.00013698,2]
[333875458,1722589837914,-520.04535737,0.00013698,2]
[333875459,1722589837927,-500.0,0.00013698,2]
[333875460,1722589837936,-500.0,0.00013698,2]
[333875461,1722589837946,-500.0,0.00013698,2]
[333875462,1722589837956,-516.26547321,0.00013698,2]
[333875463,1722589837965,-500.0,0.00013698,2]
[333875464,1722589837974,-492.20098657,0.00013698,2]
[333875465,1722589837984,-500.0,0.00013698,2]
[333875466,1722589837993,-500.0,0.00013698,2]
[333875467,1722589838003,-500.0,0.00013698,2]
[333875468,1722589838013,-500.48716057,0.00013698,2]
[333875469,1722589838022,-500.0,0.00013698,2]
[333875470,1722589838032,-500.0,0.00013698,2]
[333875471,1722589838042,-500.0,0.00013698,2]
[333875472,1722589838056,-500.0,0.00013698,2]
[333875473,1722589838065,-500.0,0.00013698,2]
[333875474,1722589838074,-500.0,0.00013698,2]
[333875475,1722589838083,-500.0,0.00013698,2]
[333875477,1722589838095,-516.35547637,0.00013698,2]
[333875479,1722589838105,-500.0,0.00013698,2]
[333875481,1722589838115,-500.0,0.00013698,2]
[333875483,1722589838125,-500.0,0.00013698,2]
[333875484,1722589838134,-501.2016491,0.00013698,2]
[333875485,1722589838143,-417.91042848,0.00013698,2]
[333875486,1722589838153,-507.14903014,0.00013698,2]
[333875487,1722589838162,-590.78517009,0.00013698,2]
[333875488,1722589838176,-500.0,0.00013698,2]
[333875489,1722589838186,-342.52461219,0.00013698,2]
[333875490,1722589838195,-500.0,0.00013698,2]
[333875491,1722589838204,-500.0,0.00013698,2]
[333875492,1722589838215,-500.0,0.00013698,2]
[333875493,1722589838224,-502.89702242,0.00013698,2]
[333875494,1722589838234,-500.0,0.00013698,2]
[333875495,1722589838243,-500.0,0.00013698,2]
[333875496,1722589838253,-500.0,0.00013698,2]
[333875497,1722589838262,-500.0,0.00013698,2]
[333875498,1722589838272,-500.0,0.00013698,2]
[333875499,1722589838281,-500.0,0.00013698,2]
[333875500,1722589838290,-500.0,0.00013698,2]
[333875501,1722589838300,-500.0,0.00013698,2]
[333875502,1722589838309,-313.36360577,0.00013698,2]
[333875503,1722589838319,-501.41004709,0.00013698,2]
[333875504,1722589838328,-500.0,0.00013698,2]
[333875505,1722589838337,-500.0,0.00013698,2]
[333875506,1722589838346,-500.0,0.00013698,2]
[333875507,1722589838356,-525.26816554,0.00013698,2]
[333875508,1722589838365,-503.50938992,0.00013698,2]
[333875509,1722589838374,-330.12169935,0.00013698,2]
[333875510,1722589838383,-224.27595518,0.00013698,2]
[333875511,1722589838392,-500.0,0.00013698,2]
[333875512,1722589838402,-500.0,0.00013698,2]
[333875513,1722589838411,-500.0,0.00013698,2]
[333875514,1722589838424,-500.0,0.00013698,2]
[333875515,1722589838433,-500.0,0.00013698,2]
[333875516,1722589838443,-502.22700289,0.00013698,2]
[333875517,1722589838452,-500.0,0.00013698,2]
[333875518,1722589838463,-505.94812083,0.00013698,2]
[333875519,1722589838472,-500.0,0.00013698,2]
[333875520,1722589838481,-500.0,0.00013698,2]
[333875521,1722589838490,-502.76569526,0.00013698,2]
[333875522,1722589838500,-358.4536143,0.00013698,2]
[333875523,1722589838509,-500.0,0.00013698,2]
[333875524,1722589838518,-500.0,0.00013698,2]
[333875525,1722589838528,-500.0,0.00013698,2]
[333875527,1722589838538,-500.0,0.00013698,2]
[333875529,1722589838549,-500.0,0.00013698,2]
[333875531,1722589838562,-501.48550373,0.00013698,2]
[333875532,1722589838576,-509.89520557,0.00013698,2]
[333875533,1722589838592,-500.0,0.00013698,2]
[333875534,1722589838613,-500.0,0.00013698,2]
[333875535,1722589838626,-500.0,0.00013698,2]
[333875536,1722589838635,-400.81230328,0.00013698,2]
[333875537,1722589838644,-505.97087219,0.00013698,2]
[333875538,1722589838655,-500.0,0.00013698,2]
[333875539,1722589838666,-500.0,0.00013698,2]
[333875540,1722589838682,-500.0,0.00013698,2]
[333875541,1722589838692,-502.37850891,0.00013698,2]
[333875542,1722589838701,-500.0,0.00013698,2]
[333875543,1722589838711,-500.0,0.00013698,2]
[333875544,1722589838720,-500.0,0.00013698,2]
[333875545,1722589838729,-500.0,0.00013698,2]
[333875546,1722589838738,-500.0,0.00013698,2]
[333875547,1722589838748,-500.0,0.00013698,2]
[333875548,1722589838758,-500.0,0.00013698,2]
[333875549,1722589838768,-520.09439415,0.00013698,2]
[333875550,1722589838778,-818.52,0.00013698,2]
[333875551,1722589838787,-500.0,0.00013698,2]
[333875552,1722589838797,-500.0,0.00013698,2]
[333875553,1722589838806,-500.0,0.00013698,2]
[333875554,1722589838814,-500.0,0.00013698,2]
[333875555,1722589838823,-500.0,0.00013698,2]
[333875556,1722589838832,-500.0,0.00013698,2]
[333875557,1722589838841,-500.0,0.00013698,2]
[333875558,1722589838849,-500.0,0.00013698,2]
[333875559,1722589838859,-500.0,0.00013698,2]
[333875560,1722589838868,-500.0,0.00013698,2]
[333875561,1722589838877,-501.85649101,0.00013698,2]
[333875562,1722589838887,-150.18772935,0.00013698,2]
[333875563,1722589838896,-645.3645662,0.00013698,2]
[333875564,1722589838904,-500.0,0.00013698,2]
[333875565,1722589838914,-651.14,0.00013698,2]
[333875566,1722589838927,-500.0,0.00013698,2]
[333875567,1722589838936,-500.0,0.00013698,2]
[333875568,1722589838945,-500.0,0.00013698,2]
[333875569,1722589838954,-500.0,0.00013698,2]
[333875570,1722589838963,-500.0,0.00013698,2]
[333875571,1722589838973,-500.0,0.00013698,2]
[333875572,1722589838983,-500.0,0.00013698,2]
[333875573,1722589838992,-506.17744813,0.00013698,2]
[333875574,1722589839001,-500.0,0.00013698,2]
[333875575,1722589839010,-514.61969258,0.00013698,2]
[333875576,1722589839020,-500.0,0.00013698,2]
[333875577,1722589839029,-500.0,0.00013698,2]
[333875578,1722589839038,-500.0,0.00013698,2]
[333875579,1722589839049,-500.0,0.00013698,2]
[333875580,1722589839058,-500.0,0.00013698,2]
[333875581,1722589839067,-505.62071224,0.00013698,2]
[333875582,1722589839077,-500.0,0.00013698,2]
[333875583,1722589839087,-502.27737542,0.00013698,2]
[333875584,1722589839096,-511.47924787,0.00013698,2]
[333875585,1722589839105,-502.04426339,0.00013698,2]
[333875586,1722589839115,-500.0,0.00013698,2]
[333875587,1722589839124,-500.0,0.00013698,2]
[333875588,1722589839134,-500.0,0.00013698,2]
[333875589,1722589839143,-500.0,0.00013698,2]
[333875590,1722589839152,-549.65343133,0.00013698,2]
[333875591,1722589839161,-500.0,0.00013698,2]
[333875592,1722589839172,-500.0,0.00013698,2]
[333875593,1722589839181,-502.21190516,0.00013698,2]
[333875594,1722589839191,-504.19522586,0.00013698,2]
[333875595,1722589839199,-512.10401633,0.00013698,2]
[333875596,1722589839208,-500.0,0.00013698,2]
[333875597,1722589839218,-500.0,0.00013698,2]
[333875598,1722589839228,-500.0,0.00013698,2]
[333875599,1722589839239,-501.24518072,0.00013698,2]
[333875600,1722589839249,-527.32885034,0.00013698,2]
[333875601,1722589839259,-359.22598153,0.00013698,2]
[333875602,1722589839269,-500.0,0.00013698,2]
[333875603,1722589839279,-200.88,0.00013698,2]
[333875604,1722589839289,-500.0,0.00013698,2]
[333875605,1722589839299,-504.12362809,0.00013698,2]
[333875606,1722589839308,-500.0,0.00013698,2]
[333875607,1722589839319,-500.0,0.00013698,2]
[333875608,1722589839331,-500.0,0.00013698,2]
[333875609,1722589839341,-500.0,0.00013698,2]
[333875610,1722589839351,-500.0,0.00013698,2]
[333875611,1722589839361,-500.0,0.00013698,2]
[333875612,1722589839371,-500.0,0.00013698,2]
[333875613,1722589839381,-500.0,0.00013698,2]
[333875614,1722589839393,-500.0,0.00013698,2]
[333875615,1722589839404,-216.38185092,0.00013698,2]
[333875616,1722589839415,-500.0,0.00013698,2]
[333875617,1722589839428,-500.0,0.00013698,2]
[333875618,1722589839438,-500.0,0.00013698,2]
[333875619,1722589839448,-500.0,0.00013698,2]
[333875621,1722589839458,-500.0,0.00013698,2]
[333875622,1722589839469,-500.0,0.00013698,2]
[333875623,1722589839480,-500.0,0.00013698,2]
[333875624,1722589839492,-500.0,0.00013698,2]
[333875625,1722589839501,-500.0,0.00013698,2]
[333875626,1722589839511,-500.0,0.00013698,2]
[333875627,1722589839520,-500.0,0.00013698,2]
[333875628,1722589839530,-500.0,0.00013698,2]
[333875629,1722589839539,-509.39,0.00013698,2]
[333875630,1722589839550,-500.0,0.00013698,2]
[333875631,1722589839562,-500.0,0.00013698,2]
[333875632,1722589839573,-500.0,0.00013698,2]
[333875633,1722589839582,-500.0,0.00013698,2]
[333875634,1722589839592,-500.0,0.00013698,2]
[333875635,1722589839601,-506.37355781,0.00013698,2]
[333875636,1722589839609,-500.0,0.00013698,2]
[333875637,1722589839703,-500.0,0.00013698,2]
[333875638,1722589839712,-503.70495135,0.00013698,2]
[333875639,1722589839722,-500.0,0.00013698,2]
[333875640,1722589839731,-500.0,0.00013698,2]
[333875641,1722589839740,-181.74233466,0.00013698,2]
[333875642,1722589839751,-571.46808504,0.00013698,2]
[333875643,1722589839760,-500.0,0.00013698,2]
[333875644,1722589839769,-500.39696673,0.00013698,2]
[333875645,1722589839778,-500.0,0.00013698,2]
[333875646,1722589839788,-500.0,0.00013698,2]
[333875647,1722589839797,-500.0,0.00013698,2]
[333875648,1722589839807,-500.0,0.00013698,2]
[333875649,1722589839816,-500.0,0.00013698,2]
[333875650,1722589839826,-500.0,0.00013698,2]
[333875651,1722589839836,-500.0,0.00013698,2]
[333875652,1722589839845,-500.0,0.00013698,2]
[333875653,1722589839856,-500.0,0.00013698,2]
[333875654,1722589839867,-500.0,0.00013698,2]
[333875655,1722589839876,-500.0,0.00013698,2]
[333875656,1722589839885,-500.0,0.00013698,2]
[333875657,1722589839894,-500.0,0.00013698,2]
[333875658,1722589839904,-500.0,0.00013698,2]
[333875659,1722589839915,-500.0,0.00013698,2]
[333875660,1722589839926,-500.0,0.00013698,2]
[333875661,1722589839938,-500.0,0.00013698,2]
[333875662,1722589839949,-597.45786099,0.00013698,2]
[333875663,1722589839962,-500.0,0.00013698,2]
[333875664,1722589839971,-500.0,0.00013698,2]
[333875665,1722589839981,-500.0,0.00013698,2]
[333875666,1722589839991,-500.0,0.00013698,2]
[333875667,1722589840000,-233.97562821,0.00013698,2]
[333875668,1722589840009,-500.0,0.00013698,2]
[333875669,1722589840019,-500.0,0.00013698,2]
[333875670,1722589840029,-500.0,0.00013698,2]
[333875671,1722589840038,-500.0,0.00013698,2]
[333875672,1722589840049,-367.14405346,0.00013698,2]
[333875673,1722589840067,-132.85594654,0.00013698,2]
[333875674,1722589840080,-500.0,0.00013698,2]
[333875675,1722589840090,-286.87128719,0.00013698,2]
[333875676,1722589840099,-501.58533449,0.00013698,2]
[333875677,1722589840109,-504.19979343,0.00013698,2]
[333875678,1722589840118,-206.42538066,0.00013698,2]
[333875679,1722589840129,-500.0,0.00013698,2]
[333875680,1722589840139,-1421.29,0.00013698,2]
[333875681,1722589840148,-500.0,0.00013698,2]
[333875682,1722589840158,-500.0,0.00013698,2]
[333875683,1722589840167,-500.0,0.00013698,2]
[333875684,1722589840178,-500.0,0.00013698,2]
[333875685,1722589840187,-500.0,0.00013698,2]
[333875686,1722589840196,-500.0,0.00013698,2]
[333875687,1722589840205,-500.0,0.00013698,2]
[333875688,1722589840214,-187.80600871,0.00013698,2]
[333875689,1722589840226,-500.0,0.00013698,2]
[333875690,1722589840235,-500.0,0.00013698,2]
[333875691,1722589840245,-500.0,0.00013698,2]
[333875692,1722589840255,-501.43,0.00013698,2]
[333875693,1722589840265,-500.0,0.00013698,2]
[333875694,1722589840274,-500.0,0.00013698,2]
[333875695,1722589840284,-500.0,0.00013698,2]
[333875696,1722589840294,-500.0,0.00013698,2]
[333875697,1722589840303,-500.0,0.00013698,2]
[333875698,1722589840313,-500.0,0.00013698,2]
[333875699,1722589840324,-500.0,0.00013698,2]
[333875700,1722589840334,-500.00000002,0.00013698,2]
[333875701,1722589840343,-500.0,0.00013698,2]
[333875702,1722589840353,-500.0,0.00013698,2]
[333875703,1722589840363,-500.0,0.00013698,2]
[333875704,1722589840373,-577.4,0.00013698,2]
[333875705,1722589840383,-340.17651757,0.00013698,2]
[333875714,1722589840563,-159.82348243,0.00013698,2]
[333875715,1722589840573,-500.0,0.00013698,2]
[333875716,1722589840583,-500.0,0.00013698,2]
[333875717,1722589840593,-2059.62,0.00013698,2]
[333875718,1722589840603,-500.0,0.00013698,2]
[333875719,1722589840613,-542.74438882,0.00013698,2]
[333875720,1722589840623,-503.96679384,0.00013698,2]
[333875721,1722589840633,-500.0,0.00013698,2]
[333875722,1722589840643,-500.0,0.00013698,2]
[333875723,1722589840653,-643.62,0.00013698,2]
[333875724,1722589840665,-1764.26,0.00013698,2]
[333875725,1722589840675,-500.0,0.00013698,2]
[333875726,1722589840684,-500.0,0.00013698,2]
[333875727,1722589840693,-500.0,0.00013698,2]
[333875728,1722589840703,-500.0,0.00013698,2]
[333875729,1722589840714,-807.78,0.00013698,2]
[333875730,1722589840724,-437.06474848,0.00013698,2]
[333875731,1722589840734,-500.0,0.00013698,2]
[333875732,1722589840743,-500.0,0.00013698,2]
[333875733,1722589840753,-500.0,0.00013698,2]
[333875734,1722589840763,-500.0,0.00013698,2]
[333875735,1722589840773,-500.0,0.00013698,2]
[333875736,1722589840784,-500.0,0.00013698,2]
[333875737,1722589840804,-500.0,0.00013698,2]
[333875738,1722589840817,-500.0,0.00013698,2]
[333875739,1722589840827,-500.0,0.00013698,2]
[333875740,1722589840838,-500.0,0.00013698,2]
[333875741,1722589840848,-500.0,0.00013698,2]
[333875742,1722589840859,-500.0,0.00013698,2]
[333875743,1722589840871,-500.0,0.00013698,2]
[333875744,1722589840883,-500.0,0.00013698,2]
[333875745,1722589840892,-500.0,0.00013698,2]
[333875746,1722589840902,-510.23796948,0.00013698,2]
[333875747,1722589840912,-500.0,0.00013698,2]
[333875748,1722589840924,-500.0,0.00013698,2]
[333875749,1722589840934,-500.0,0.00013698,2]
[333875750,1722589840943,-500.0,0.00013698,2]
[333875751,1722589840953,-500.0,0.00013698,2]
[333875752,1722589840963,-500.0,0.00013698,2]
[333875753,1722589840973,-612.56,0.00013698,2]
[333875754,1722589840982,-500.0,0.00013698,2]
[333875755,1722589840993,-513.29744215,0.00013698,2]
[333875756,1722589841003,-629.24943078,0.00013698,2]
[333875757,1722589841015,-500.16182026,0.00013698,2]
[333875758,1722589841026,-500.0,0.00013698,2]
[333875759,1722589841036,-500.0,0.00013698,2]
[333875760,1722589841048,-500.0,0.00013698,2]
[333875761,1722589841059,-379.73496011,0.00013698,2]
[333875762,1722589841070,-500.0,0.00013698,2]
[333875763,1722589841079,-500.0,0.00013698,2]
[333875764,1722589841089,-500.0,0.00013698,2]
[333875765,1722589841099,-500.0,0.00013698,2]
[333875766,1722589841108,-500.0,0.00013698,2]
[333875767,1722589841119,-503.25740556,0.00013698,2]
[333875768,1722589841130,-500.0,0.00013698,2]
[333875769,1722589841140,-500.0,0.00013698,2]
[333875770,1722589841149,-500.0,0.00013698,2]
[333875771,1722589841159,-500.0,0.00013698,2]
[333875772,1722589841169,-500.0,0.00013698,2]
[333875773,1722589841179,-500.0,0.00013698,2]
[333875774,1722589841190,-500.0,0.00013698,2]
[333875775,1722589841200,-500.0,0.00013698,2]
[333875776,1722589841209,-500.0,0.00013698,2]
[333875777,1722589841219,-2047.2,0.00013698,2]
[333875778,1722589841229,-848.28,0.00013698,2]
[333875779,1722589841239,-500.0,0.00013698,2]
[333875780,1722589841248,-500.0,0.00013698,2]
[333875781,1722589841258,-500.0,0.00013698,2]
[333875782,1722589841267,-500.000001,0.00013698,2]
[333875783,1722589841277,-500.0,0.00013698,2]
[333875784,1722589841286,-500.0,0.00013698,2]
[333875785,1722589841296,-500.0,0.00013698,2]
[333875786,1722589841305,-500.0,0.00013698,2]
[333875787,1722589841315,-500.0,0.00013698,2]
[333875788,1722589841324,-500.0,0.00013698,2]
[333875789,1722589841334,-500.0,0.00013698,2]
[333875790,1722589841344,-500.0,0.00013698,2]
[333875791,1722589841353,-500.0,0.00013698,2]
[333875792,1722589841362,-500.0,0.00013698,2]
[333875793,1722589841372,-500.0,0.00013698,2]
[333875794,1722589841382,-644.32,0.00013698,2]
[333875795,1722589841391,-500.0,0.00013698,2]
[333875796,1722589841400,-500.0,0.00013698,2]
[333875797,1722589841410,-500.0,0.00013698,2]
[333875798,1722589841419,-500.0,0.00013698,2]
[333875799,1722589841430,-255.15035679,0.00013698,2]
[333875800,1722589841440,-500.0,0.00013698,2]
[333875801,1722589841453,-500.0,0.00013698,2]
[333875802,1722589841462,-517.00083196,0.00013698,2]
[333875803,1722589841473,-500.0,0.00013698,2]
[333875804,1722589841483,-497.13206625,0.00013698,2]
[333875805,1722589841492,-898.01,0.00013698,2]
[333875806,1722589841502,-500.0,0.00013698,2]
[333875807,1722589841511,-500.0,0.00013698,2]
[333875808,1722589841521,-500.0,0.00013698,2]
[333875809,1722589841530,-500.0,0.00013698,2]
[333875810,1722589841541,-500.0,0.00013698,2]
[333875811,1722589841551,-500.0,0.00013698,2]
[333875812,1722589841561,-500.0,0.00013698,2]
[333875813,1722589841571,-500.0,0.00013698,2]
[333875814,1722589841580,-500.0,0.00013698,2]
[333875815,1722589841590,-500.0,0.00013698,2]
[333875816,1722589841599,-250.9238597,0.00013698,2]
[333875817,1722589841609,-500.0,0.00013698,2]
[333875818,1722589841618,-500.0,0.00013698,2]
[333875819,1722589841628,-615.5,0.00013698,2]
[333875820,1722589841637,-500.0,0.00013698,2]
[333875821,1722589841650,-500.0,0.00013698,2]
[333875822,1722589841660,-617.85792312,0.00013698,2]
[333875823,1722589841673,-500.0,0.00013698,2]
[333875824,1722589841683,-500.0,0.00013698,2]
[333875825,1722589841794,-500.0,0.00013698,2]
[333875826,1722589841813,-500.0,0.00013698,2]
[333875827,1722589841822,-500.0,0.00013698,2]
[333875828,1722589841831,-500.0,0.00013698,2]
[333875829,1722589841841,-500.0,0.00013698,2]
[333875830,1722589841850,-500.0,0.00013698,2]
[333875831,1722589841859,-500.0,0.00013698,2]
[333875832,1722589841869,-500.0,0.00013698,2]
[333875833,1722589841878,-500.0,0.00013698,2]
[333875834,1722589841887,-500.0,0.00013698,2]
[333875835,1722589841897,-500.0,0.00013698,2]
[333875836,1722589841907,-500.0,0.00013698,2]
[333875837,1722589841918,-500.0,0.00013698,2]
[333875838,1722589841931,-500.0,0.00013698,2]
[333875839,1722589841942,-500.0,0.00013698,2]
[333875840,1722589841952,-507.185427,0.00013698,2]
[333875841,1722589841961,-500.0,0.00013698,2]
[333875842,1722589841972,-500.0,0.00013698,2]
[333875843,1722589841982,-500.0,0.00013698,2]
[333875844,1722589841992,-500.0,0.00013698,2]
[333875845,1722589842004,-500.0,0.00013698,2]
[333875846,1722589842014,-500.0,0.00013698,2]
[333875847,1722589842024,-500.0,0.00013698,2]
[333875848,1722589842034,-500.0,0.00013698,2]
[333875849,1722589842045,-672.93,0.00013698,2]
[333875850,1722589842057,-500.0,0.00013698,2]
[333875851,1722589842067,-3000.0,0.00013699,2]
[333875852,1722589842078,-150.112233,0.000137,2]
[333875853,1722589842090,-1865.48314745,0.00013846,2]
[333875854,1722589842102,-2000.0,0.00013852,2]
[333875855,1722589842113,-500.0,0.00013871,2]
[333875856,1722589842124,-500.0,0.00013871,2]
[333875857,1722589842134,-500.0,0.00013871,2]
[333875858,1722589842145,-500.0,0.00013871,2]
[333875859,1722589842155,-200.0,0.00013872,2]
[333875860,1722589842166,-206.9342036,0.000139,2]
[333875861,1722589842176,-2160.5703251,0.00013941,2]
[333875862,1722589842186,-2160.5703251,0.00013952,2]
[333875863,1722589842195,-2160.5703251,0.00013961,2]
[333875864,1722589842206,-2403.6,0.00013961,2]
[333875865,1722589842216,-293.596341,0.00013962,2]
[333875866,1722589842226,-293.596341,0.00013962,2]
[333875867,1722589842237,-151.0,0.00013962,2]
[333875868,1722589842248,-172.114182,0.00013962,2]
[333875869,1722589842257,-151.0,0.00013962,2]
[333875870,1722589842268,-151.0,0.00013962,2]
[333875871,1722589842278,-157.661468,0.00013962,2]
[333875872,1722589842288,-157.661468,0.00013962,2]
[333875873,1722589842297,-151.0,0.00013962,2]
[333875875,1722589842306,-151.0,0.00013962,2]
[333875877,1722589842316,-151.0,0.00013962,2]
[333875879,1722589842325,-151.0,0.00013962,2]
[333875881,1722589842335,-151.0,0.00013962,2]
[333875883,1722589842345,-151.0,0.00013962,2]
[333875884,1722589842357,-151.0,0.00013962,2]
[333875885,1722589842369,-161.747904,0.00013962,2]
[333875886,1722589842380,-151.0,0.00013962,2]
[333875887,1722589842392,-151.0,0.00013962,2]
[333875888,1722589842403,-151.0,0.00013962,2]
[333875889,1722589842414,-245.568076,0.00013962,2]
[333875890,1722589842426,-247.698763,0.00013962,2]
[333875891,1722589842436,-245.568076,0.00013962,2]
[333875892,1722589842445,-247.698763,0.00013962,2]
[333875893,1722589842455,-272.976868,0.00013962,2]
[333875894,1722589842465,-272.976868,0.00013962,2]
[333875895,1722589842474,-216.491155,0.00013962,2]
[333875896,1722589842484,-216.491155,0.00013962,2]
[333875897,1722589842493,-151.0,0.00013962,2]